[Event "Late-Titled-Tuesday-Blitz-January-16-2024"]
[Site "Chess.com"]
[Date "2024.01.16"]
[Round "9"]
[White "th3d4rkness"]
[Black "dasatcu90"]
[Result "1-0"]
[WhiteElo "2131"]
[BlackElo "2245"]
[TimeControl "180+1"]
[EndTime "15:46:11 PST"]
[Termination "th3d4rkness won on time"]

1. d4 {[%clk 0:03:00.9]} 1... Nf6 {[%clk 0:02:57.8]} 2. c4 {[%clk 0:03:00.2]}
2... e6 {[%clk 0:02:57.6]} 3. Nc3 {[%clk 0:02:59.6]} 3... Bb4 {[%clk 0:02:57.1]}
4. Qb3 {[%clk 0:02:59.5]} 4... Nc6 {[%clk 0:02:49.5]} 5. Nf3 {[%clk 0:02:57.6]}
5... Qe7 {[%clk 0:02:45.8]} 6. a3 {[%clk 0:02:55.5]} 6... Bxc3+ {[%clk
0:02:43.5]} 7. Qxc3 {[%clk 0:02:55.4]} 7... d6 {[%clk 0:02:40.9]} 8. e3 {[%clk
0:02:44.5]} 8... e5 {[%clk 0:02:31.6]} 9. d5 {[%clk 0:02:43.5]} 9... e4 {[%clk
0:02:17.7]} 10. dxc6 {[%clk 0:02:38.5]} 10... exf3 {[%clk 0:02:17.1]} 11. gxf3
{[%clk 0:02:31.6]} 11... bxc6 {[%clk 0:02:16.3]} 12. Bd3 {[%clk 0:02:26.8]}
12... c5 {[%clk 0:02:05.7]} 13. Rg1 {[%clk 0:02:26]} 13... Bb7 {[%clk
0:01:35.2]} 14. e4 {[%clk 0:02:21.2]} 14... g6 {[%clk 0:00:59.5]} 15. Bg5 {[%clk
0:02:18.4]} 15... O-O {[%clk 0:00:18.5]} 16. Bxf6 {[%clk 0:02:17.3]} 16... Qe6
{[%clk 0:00:17.2]} 17. O-O-O {[%clk 0:02:12.5]} 17... Bc6 {[%clk 0:00:13.3]} 18.
Bg5 {[%clk 0:02:07]} 18... Rab8 {[%clk 0:00:11.5]} 19. Qf6 {[%clk 0:02:03.6]}
19... Qxf6 {[%clk 0:00:11.2]} 20. Bxf6 {[%clk 0:02:03.8]} 20... Rb7 {[%clk
0:00:09.3]} 21. h4 {[%clk 0:02:03]} 21... Rfb8 {[%clk 0:00:09.1]} 22. h5 {[%clk
0:02:01.9]} 22... Kf8 {[%clk 0:00:06.8]} 23. hxg6 {[%clk 0:02:01.3]} 23... hxg6
{[%clk 0:00:07.7]} 24. Rh1 {[%clk 0:02:01.1]} 24... Ke8 {[%clk 0:00:08]} 25.
Rh8+ {[%clk 0:02:00.6]} 25... Kd7 {[%clk 0:00:08.7]} 26. Rdh1 {[%clk 0:01:58.7]}
26... Ke6 {[%clk 0:00:08]} 27. Bc3 {[%clk 0:01:57.3]} 27... Ba4 {[%clk
0:00:05.4]} 28. Rxb8 {[%clk 0:01:55.7]} 28... Rxb8 {[%clk 0:00:06.3]} 29. Rh8
{[%clk 0:01:53.7]} 29... Rxh8 {[%clk 0:00:05.8]} 30. Bxh8 {[%clk 0:01:52.7]}
30... f6 {[%clk 0:00:04.8]} 31. Bg7 {[%clk 0:01:52.8]} 31... Kf7 {[%clk
0:00:04.8]} 32. Bh6 {[%clk 0:01:45.1]} 32... g5 {[%clk 0:00:05.3]} 33. f4 {[%clk
0:01:43.7]} 33... Kg6 {[%clk 0:00:04.6]} 34. fxg5 {[%clk 0:01:41.8]} 34... fxg5
{[%clk 0:00:05.3]} 35. Bf8 {[%clk 0:01:20.5]} 35... Kf7 {[%clk 0:00:05.6]} 36.
Bh6 {[%clk 0:01:15.6]} 36... Kg6 {[%clk 0:00:05.8]} 37. Bxg5 {[%clk 0:01:14.4]}
37... Kxg5 {[%clk 0:00:06.7]} 38. Kd2 {[%clk 0:01:14.6]} 38... Kf4 {[%clk
0:00:06.9]} 39. Ke2 {[%clk 0:01:12.5]} 39... a5 {[%clk 0:00:06.9]} 40. Kd2
{[%clk 0:01:05]} 40... Bc6 {[%clk 0:00:07.3]} 41. e5 {[%clk 0:00:56]} 41... Kxe5
{[%clk 0:00:05.3]} 42. Ke3 {[%clk 0:00:55.6]} 42... Be8 {[%clk 0:00:03.2]} 43.
f4+ {[%clk 0:00:55.5]} 43... Kf6 {[%clk 0:00:03.5]} 44. Be4 {[%clk 0:00:54.6]}
44... Bf7 {[%clk 0:00:03.4]} 45. b3 {[%clk 0:00:53.3]} 45... a4 {[%clk
0:00:02.6]} 46. bxa4 {[%clk 0:00:53.3]} 46... Bxc4 {[%clk 0:00:02.4]} 47. a5
{[%clk 0:00:53.8]} 47... d5 {[%clk 0:00:02.2]} 48. Bc2 {[%clk 0:00:50.7]} 48...
d4+ {[%clk 0:00:02.3]} 49. Kf3 {[%clk 0:00:49.9]} 1-0

[Event "Late-Titled-Tuesday-Blitz-January-16-2024"]
[Site "Chess.com"]
[Date "2024.01.16"]
[Round "9"]
[White "PawnEatingZombie"]
[Black "BozeKat"]
[Result "0-1"]
[WhiteElo "2149"]
[BlackElo "2107"]
[TimeControl "180+1"]
[EndTime "15:46:26 PST"]
[Termination "BozeKat won on time"]

1. e4 {[%clk 0:02:47.9]} 1... c5 {[%clk 0:02:59.6]} 2. c3 {[%clk 0:02:45.8]}
2... d5 {[%clk 0:02:59]} 3. exd5 {[%clk 0:02:44.7]} 3... Nf6 {[%clk 0:02:58.7]}
4. Bb5+ {[%clk 0:02:42.9]} 4... Bd7 {[%clk 0:02:56.6]} 5. Bxd7+ {[%clk
0:02:42.9]} 5... Qxd7 {[%clk 0:02:55.7]} 6. c4 {[%clk 0:02:43.4]} 6... e6 {[%clk
0:02:53.6]} 7. dxe6 {[%clk 0:02:41.5]} 7... Qxe6+ {[%clk 0:02:49.6]} 8. Qe2
{[%clk 0:02:41.5]} 8... Qxe2+ {[%clk 0:02:45.9]} 9. Nxe2 {[%clk 0:02:38.4]} 9...
Nc6 {[%clk 0:02:45.4]} 10. O-O {[%clk 0:02:36.5]} 10... O-O-O {[%clk 0:02:43.7]}
11. Nbc3 {[%clk 0:02:36.8]} 11... Nb4 {[%clk 0:02:31.9]} 12. d3 {[%clk
0:02:04.3]} 12... Rxd3 {[%clk 0:02:15.1]} 13. Be3 {[%clk 0:02:00.8]} 13... Nc2
{[%clk 0:02:08]} 14. Rad1 {[%clk 0:01:54.5]} 14... Rxe3 {[%clk 0:01:49.5]} 15.
fxe3 {[%clk 0:01:46.5]} 15... Nxe3 {[%clk 0:01:50.4]} 16. Nf4 {[%clk 0:01:23.3]}
16... Nxf1 {[%clk 0:01:47.2]} 17. Kxf1 {[%clk 0:01:21.9]} 17... Be7 {[%clk
0:01:39.4]} 18. Ke2 {[%clk 0:01:10.4]} 18... Re8 {[%clk 0:01:29]} 19. Kf3 {[%clk
0:01:09.8]} 19... Bd8 {[%clk 0:01:14.3]} 20. g4 {[%clk 0:01:08]} 20... h6 {[%clk
0:01:10.5]} 21. h4 {[%clk 0:01:07.5]} 21... Nd7 {[%clk 0:01:07.9]} 22. b3 {[%clk
0:00:43]} 22... Bxh4 {[%clk 0:01:05.7]} 23. Nb5 {[%clk 0:00:41.6]} 23... Ne5+
{[%clk 0:00:55.6]} 24. Kg2 {[%clk 0:00:41.1]} 24... Kb8 {[%clk 0:00:46.2]} 25.
Kh3 {[%clk 0:00:25.1]} 25... Bg5 {[%clk 0:00:42.8]} 26. Nd5 {[%clk 0:00:19.7]}
26... a6 {[%clk 0:00:37.5]} 27. Nd6 {[%clk 0:00:19.6]} 27... Re6 {[%clk
0:00:29.8]} 28. Nf5 {[%clk 0:00:19.5]} 28... g6 {[%clk 0:00:24.9]} 29. Ng3
{[%clk 0:00:19.4]} 29... Nf3 {[%clk 0:00:20]} 30. Rf1 {[%clk 0:00:13.7]} 30...
Ne5 {[%clk 0:00:18.2]} 31. Ne4 {[%clk 0:00:13]} 31... Bd8 {[%clk 0:00:16.7]} 32.
Nxc5 {[%clk 0:00:11.9]} 32... Rc6 {[%clk 0:00:12.5]} 33. Ne4 {[%clk 0:00:09.3]}
33... h5 {[%clk 0:00:10.5]} 34. gxh5 {[%clk 0:00:08.7]} 34... gxh5 {[%clk
0:00:11.4]} 35. Rf5 {[%clk 0:00:07.2]} 35... Re6 {[%clk 0:00:10.2]} 36. Rxh5
{[%clk 0:00:06.4]} 36... Ka7 {[%clk 0:00:09.7]} 37. Nc5 {[%clk 0:00:05.7]} 37...
Re8 {[%clk 0:00:07.7]} 38. Na4 {[%clk 0:00:03.1]} 38... Ng6 {[%clk 0:00:07.9]}
39. Rh7 {[%clk 0:00:02.3]} 39... f5 {[%clk 0:00:07.4]} 40. Kg3 {[%clk
0:00:01.5]} 40... f4+ {[%clk 0:00:07.1]} 41. Kf3 {[%clk 0:00:01.6]} 41... Rf8
{[%clk 0:00:06.1]} 0-1

[Event "Late-Titled-Tuesday-Blitz-January-16-2024"]
[Site "Chess.com"]
[Date "2024.01.16"]
[Round "9"]
[White "ZuraTqebuchava"]
[Black "MaxLeto"]
[Result "0-1"]
[WhiteElo "2111"]
[BlackElo "2372"]
[TimeControl "180+1"]
[EndTime "15:46:26 PST"]
[Termination "MaxLeto won on time"]

1. e4 {[%clk 0:03:00.8]} 1... c5 {[%clk 0:02:33.3]} 2. Nf3 {[%clk 0:02:58.7]}
2... d6 {[%clk 0:02:33.2]} 3. Bb5+ {[%clk 0:02:57.3]} 3... Nd7 {[%clk
0:02:32.8]} 4. O-O {[%clk 0:02:56.2]} 4... e5 {[%clk 0:02:31.8]} 5. c3 {[%clk
0:02:53.2]} 5... Nf6 {[%clk 0:02:31.6]} 6. d4 {[%clk 0:02:48.6]} 6... Qc7 {[%clk
0:02:31.6]} 7. dxe5 {[%clk 0:02:45.3]} 7... dxe5 {[%clk 0:02:31.6]} 8. Na3
{[%clk 0:02:29.8]} 8... Be7 {[%clk 0:02:27]} 9. Nc4 {[%clk 0:02:23.4]} 9... O-O
{[%clk 0:02:26.8]} 10. Bxd7 {[%clk 0:01:57.1]} 10... Nxd7 {[%clk 0:02:21.2]} 11.
Ne3 {[%clk 0:01:50.9]} 11... Nf6 {[%clk 0:02:19.6]} 12. Qc2 {[%clk 0:01:40.6]}
12... Be6 {[%clk 0:01:48.2]} 13. h3 {[%clk 0:01:36.1]} 13... h6 {[%clk
0:01:43.2]} 14. b3 {[%clk 0:01:32.6]} 14... Rfd8 {[%clk 0:01:40.1]} 15. c4
{[%clk 0:01:29]} 15... Bd6 {[%clk 0:00:40.5]} 16. Bb2 {[%clk 0:01:23.9]} 16...
Re8 {[%clk 0:00:38.8]} 17. Rfd1 {[%clk 0:01:19.2]} 17... Rad8 {[%clk 0:00:39.4]}
18. Rxd6 {[%clk 0:01:06.8]} 18... Qxd6 {[%clk 0:00:38]} 19. Bxe5 {[%clk
0:01:00.3]} 19... Qe7 {[%clk 0:00:38.6]} 20. Nd5 {[%clk 0:00:47.3]} 20... Nxd5
{[%clk 0:00:34.5]} 21. exd5 {[%clk 0:00:46.4]} 21... Bc8 {[%clk 0:00:34.1]} 22.
Re1 {[%clk 0:00:27.6]} 22... f6 {[%clk 0:00:34.6]} 23. Bg3 {[%clk 0:00:22]}
23... Qf7 {[%clk 0:00:34.3]} 24. Rd1 {[%clk 0:00:20.3]} 24... b6 {[%clk
0:00:34.3]} 25. d6 {[%clk 0:00:19.4]} 25... Bb7 {[%clk 0:00:33.9]} 26. Nh4
{[%clk 0:00:15.7]} 26... Be4 {[%clk 0:00:28.3]} 27. Qc3 {[%clk 0:00:12.7]} 27...
g5 {[%clk 0:00:29.2]} 28. f3 {[%clk 0:00:09.7]} 28... gxh4 {[%clk 0:00:28.7]}
29. fxe4 {[%clk 0:00:08]} 29... hxg3 {[%clk 0:00:29.2]} 30. Rf1 {[%clk
0:00:06.7]} 30... Qg7 {[%clk 0:00:30.1]} 31. Rf3 {[%clk 0:00:04]} 31... Re5
{[%clk 0:00:27.7]} 32. h4 {[%clk 0:00:02.6]} 32... Rxe4 {[%clk 0:00:22.9]} 33.
Rxg3 {[%clk 0:00:03]} 33... Rg4 {[%clk 0:00:23.6]} 34. Rf3 {[%clk 0:00:03]}
34... f5 {[%clk 0:00:22.3]} 35. Qe3 {[%clk 0:00:03.4]} 35... Re4 {[%clk
0:00:21.9]} 36. Qd3 {[%clk 0:00:03.1]} 36... Qd4+ {[%clk 0:00:22.1]} 37. Qxd4
{[%clk 0:00:02.4]} 37... Rxd4 {[%clk 0:00:23]} 38. Rf4 {[%clk 0:00:03.1]} 38...
R8xd6 {[%clk 0:00:23.9]} 39. Rxf5 {[%clk 0:00:03.1]} 39... Kg7 {[%clk
0:00:24.8]} 40. Re5 {[%clk 0:00:03.1]} 40... Rd7 {[%clk 0:00:23.8]} 0-1

[Event "Late-Titled-Tuesday-Blitz-January-16-2024"]
[Site "Chess.com"]
[Date "2024.01.16"]
[Round "9"]
[White "Nick12772"]
[Black "mortngabriel"]
[Result "0-1"]
[WhiteElo "2328"]
[BlackElo "2506"]
[TimeControl "180+1"]
[EndTime "15:46:28 PST"]
[Termination "mortngabriel won by resignation"]

1. Nf3 {[%clk 0:03:00.9]} 1... d5 {[%clk 0:02:59.8]} 2. g3 {[%clk 0:03:01.4]}
2... Nf6 {[%clk 0:02:59.7]} 3. Bg2 {[%clk 0:03:01.9]} 3... e6 {[%clk 0:03:00.6]}
4. O-O {[%clk 0:03:02.5]} 4... Be7 {[%clk 0:03:01.1]} 5. d4 {[%clk 0:03:02.8]}
5... O-O {[%clk 0:03:01.7]} 6. c4 {[%clk 0:03:03.4]} 6... dxc4 {[%clk
0:03:01.3]} 7. Qc2 {[%clk 0:03:03.4]} 7... Nd5 {[%clk 0:03:00.8]} 8. Qxc4 {[%clk
0:03:02.9]} 8... b5 {[%clk 0:03:00.9]} 9. Qc2 {[%clk 0:03:02.3]} 9... Bb7 {[%clk
0:03:00.8]} 10. Nc3 {[%clk 0:03:02.5]} 10... a6 {[%clk 0:02:37.5]} 11. Nxd5
{[%clk 0:03:00.9]} 11... Bxd5 {[%clk 0:02:38.4]} 12. Bf4 {[%clk 0:03:00.9]}
12... Bd6 {[%clk 0:02:06.3]} 13. Bxd6 {[%clk 0:03:00.7]} 13... cxd6 {[%clk
0:02:04.1]} 14. Rfc1 {[%clk 0:02:55.4]} 14... Nd7 {[%clk 0:01:56.8]} 15. Qc7
{[%clk 0:02:51.8]} 15... Nf6 {[%clk 0:01:45.5]} 16. Qxd8 {[%clk 0:02:50]} 16...
Rfxd8 {[%clk 0:01:45.2]} 17. Nd2 {[%clk 0:02:48.6]} 17... Bxg2 {[%clk
0:01:44.3]} 18. Kxg2 {[%clk 0:02:49.5]} 18... Rac8 {[%clk 0:01:39.2]} 19. f3
{[%clk 0:02:45.5]} 19... Nd5 {[%clk 0:01:37.1]} 20. Kf2 {[%clk 0:02:44.5]} 20...
Nb4 {[%clk 0:01:34.9]} 21. a3 {[%clk 0:02:39.5]} 21... Nc2 {[%clk 0:01:34.5]}
22. Rab1 {[%clk 0:02:32]} 22... Nxd4 {[%clk 0:01:34.4]} 23. Ne4 {[%clk
0:02:27.1]} 23... d5 {[%clk 0:01:16.4]} 24. Nc5 {[%clk 0:02:22.7]} 24... Rc6
{[%clk 0:01:07.9]} 25. e3 {[%clk 0:02:11.6]} 25... Nf5 {[%clk 0:01:07.7]} 26. b4
{[%clk 0:01:44.3]} 26... Nd6 {[%clk 0:01:06.3]} 27. a4 {[%clk 0:01:36.5]} 27...
Rdc8 {[%clk 0:01:02.1]} 28. axb5 {[%clk 0:01:11.5]} 28... axb5 {[%clk 0:01:03]}
29. Ra1 {[%clk 0:01:11.8]} 29... Nc4 {[%clk 0:01:03]} 30. Ra7 {[%clk 0:01:06.6]}
30... R6c7 {[%clk 0:00:56.9]} 31. Rca1 {[%clk 0:01:04]} 31... g5 {[%clk
0:00:53.2]} 32. Rxc7 {[%clk 0:00:55.4]} 32... Rxc7 {[%clk 0:00:53.5]} 33. Ra8+
{[%clk 0:00:56.2]} 33... Kg7 {[%clk 0:00:53.9]} 34. Rb8 {[%clk 0:00:56.8]} 34...
Ra7 {[%clk 0:00:50.8]} 35. Rxb5 {[%clk 0:00:50.8]} 35... Ra2+ {[%clk 0:00:50.8]}
36. Ke1 {[%clk 0:00:45.2]} 36... Nxe3 {[%clk 0:00:48.9]} 37. Rb7 {[%clk
0:00:44.9]} 37... Kg6 {[%clk 0:00:43.6]} 38. b5 {[%clk 0:00:44.8]} 38... Nc4
{[%clk 0:00:31.3]} 39. Nd7 {[%clk 0:00:39.3]} 39... d4 {[%clk 0:00:21.6]} 40.
Rc7 {[%clk 0:00:31]} 40... Ne3 {[%clk 0:00:16.8]} 41. Ne5+ {[%clk 0:00:29.1]}
41... Kf6 {[%clk 0:00:16.7]} 42. f4 {[%clk 0:00:22.5]} 42... gxf4 {[%clk
0:00:16.7]} 43. gxf4 {[%clk 0:00:23.4]} 43... Kf5 {[%clk 0:00:17.5]} 44. Rxf7+
{[%clk 0:00:17.3]} 44... Ke4 {[%clk 0:00:17.7]} 45. b6 {[%clk 0:00:15.8]} 45...
d3 {[%clk 0:00:17.4]} 46. Nxd3 {[%clk 0:00:14.7]} 46... Kxd3 {[%clk 0:00:18.3]}
47. Rd7+ {[%clk 0:00:13.1]} 47... Ke4 {[%clk 0:00:18.4]} 48. b7 {[%clk
0:00:12.3]} 48... Kf3 {[%clk 0:00:18.7]} 49. Rd2 {[%clk 0:00:09.9]} 49... Ra1+
{[%clk 0:00:18.7]} 0-1

[Event "Late-Titled-Tuesday-Blitz-January-16-2024"]
[Site "Chess.com"]
[Date "2024.01.16"]
[Round "9"]
[White "Fandorine"]
[Black "Makswolf200817"]
[Result "1-0"]
[WhiteElo "2967"]
[BlackElo "2754"]
[TimeControl "180+1"]
[EndTime "15:46:29 PST"]
[Termination "Fandorine won on time"]

1. c4 {[%clk 0:03:00.9]} 1... e6 {[%clk 0:02:59.6]} 2. g3 {[%clk 0:03:01.1]}
2... d5 {[%clk 0:02:59.9]} 3. Bg2 {[%clk 0:03:02]} 3... Nf6 {[%clk 0:03:00.5]}
4. Nf3 {[%clk 0:03:02.7]} 4... dxc4 {[%clk 0:03:01]} 5. Qa4+ {[%clk 0:03:02.4]}
5... Nbd7 {[%clk 0:03:01.3]} 6. Qxc4 {[%clk 0:03:03]} 6... a6 {[%clk 0:03:02]}
7. Qc2 {[%clk 0:03:03.1]} 7... c5 {[%clk 0:03:01.6]} 8. Nc3 {[%clk 0:03:02.2]}
8... Qc7 {[%clk 0:02:57.8]} 9. O-O {[%clk 0:03:01.2]} 9... b5 {[%clk 0:02:55.8]}
10. a4 {[%clk 0:02:59.9]} 10... b4 {[%clk 0:02:46.9]} 11. Nd1 {[%clk 0:02:58.2]}
11... Bb7 {[%clk 0:02:46.4]} 12. Ne3 {[%clk 0:02:56.2]} 12... Be7 {[%clk
0:02:42.7]} 13. d3 {[%clk 0:02:51.8]} 13... O-O {[%clk 0:02:42.5]} 14. Nc4
{[%clk 0:02:52]} 14... Nd5 {[%clk 0:02:42.6]} 15. a5 {[%clk 0:02:40]} 15... Bc6
{[%clk 0:02:36.8]} 16. e4 {[%clk 0:02:38.3]} 16... N5f6 {[%clk 0:02:37]} 17. Bf4
{[%clk 0:02:38.4]} 17... Qb7 {[%clk 0:02:34.3]} 18. Nfe5 {[%clk 0:02:36.9]}
18... Nxe5 {[%clk 0:02:20.8]} 19. Nxe5 {[%clk 0:02:37.8]} 19... Bb5 {[%clk
0:02:20.9]} 20. Nc4 {[%clk 0:02:31.9]} 20... Rad8 {[%clk 0:02:14.1]} 21. Rfd1
{[%clk 0:02:31.3]} 21... Bc6 {[%clk 0:02:05.8]} 22. h3 {[%clk 0:02:27.9]} 22...
Ne8 {[%clk 0:01:58.1]} 23. Be3 {[%clk 0:01:38.7]} 23... Bb5 {[%clk 0:01:36.8]}
24. Nb6 {[%clk 0:01:29.9]} 24... Nf6 {[%clk 0:01:28.1]} 25. Bxc5 {[%clk
0:01:07.3]} 25... Bxc5 {[%clk 0:01:11]} 26. Qxc5 {[%clk 0:01:06.1]} 26... Rxd3
{[%clk 0:00:51.2]} 27. e5 {[%clk 0:01:01.4]} 27... Ne4 {[%clk 0:00:49.1]} 28.
Qxb4 {[%clk 0:00:59.6]} 28... Rxd1+ {[%clk 0:00:46.1]} 29. Rxd1 {[%clk
0:01:00.5]} 29... Bc6 {[%clk 0:00:46.7]} 30. Rc1 {[%clk 0:00:55.6]} 30... Rd8
{[%clk 0:00:16.5]} 31. Rxc6 {[%clk 0:00:27.6]} 31... Qxc6 {[%clk 0:00:13.1]} 32.
Bxe4 {[%clk 0:00:23.1]} 32... Qc1+ {[%clk 0:00:13]} 33. Kg2 {[%clk 0:00:23.7]}
33... g6 {[%clk 0:00:13.7]} 34. Nc4 {[%clk 0:00:18]} 34... Rd4 {[%clk
0:00:09.7]} 35. Qb8+ {[%clk 0:00:18.5]} 35... Kg7 {[%clk 0:00:10]} 36. Nd6
{[%clk 0:00:19.4]} 36... Qc5 {[%clk 0:00:05.9]} 37. Qb7 {[%clk 0:00:14.1]} 37...
Qxe5 {[%clk 0:00:02.8]} 38. Qxf7+ {[%clk 0:00:14.7]} 38... Kh6 {[%clk
0:00:02.5]} 39. Qf8+ {[%clk 0:00:12.3]} 39... Kh5 {[%clk 0:00:03.1]} 40. Bf3+
{[%clk 0:00:11.3]} 40... Kg5 {[%clk 0:00:01.4]} 41. Nf7+ {[%clk 0:00:11.8]} 1-0

[Event "Late-Titled-Tuesday-Blitz-January-16-2024"]
[Site "Chess.com"]
[Date "2024.01.16"]
[Round "9"]
[White "GiorgianBarbosa"]
[Black "laskakid"]
[Result "1-0"]
[WhiteElo "2468"]
[BlackElo "2315"]
[TimeControl "180+1"]
[EndTime "15:46:30 PST"]
[Termination "GiorgianBarbosa won on time"]

1. d4 {[%clk 0:03:00.9]} 1... d5 {[%clk 0:02:59.5]} 2. c4 {[%clk 0:03:01]} 2...
e6 {[%clk 0:02:59.8]} 3. Nc3 {[%clk 0:03:01.6]} 3... c6 {[%clk 0:03:00.1]} 4. e3
{[%clk 0:02:59.9]} 4... f5 {[%clk 0:02:58.8]} 5. Qc2 {[%clk 0:02:55.8]} 5... Nf6
{[%clk 0:02:47.2]} 6. Bd3 {[%clk 0:02:52.8]} 6... Bd6 {[%clk 0:02:42.7]} 7. Nge2
{[%clk 0:02:51.7]} 7... O-O {[%clk 0:02:40.8]} 8. Bd2 {[%clk 0:02:52.1]} 8...
Qe7 {[%clk 0:02:25.2]} 9. f3 {[%clk 0:02:48.9]} 9... Kh8 {[%clk 0:02:13.5]} 10.
h3 {[%clk 0:02:45.1]} 10... dxc4 {[%clk 0:02:06.8]} 11. Bxc4 {[%clk 0:02:43.1]}
11... e5 {[%clk 0:02:07]} 12. O-O-O {[%clk 0:02:34.9]} 12... b5 {[%clk
0:02:01.5]} 13. Bb3 {[%clk 0:02:34.2]} 13... a5 {[%clk 0:01:57.9]} 14. a4 {[%clk
0:02:27.9]} 14... bxa4 {[%clk 0:01:52.2]} 15. Nxa4 {[%clk 0:02:27.2]} 15... Nbd7
{[%clk 0:01:34.4]} 16. Bc3 {[%clk 0:02:23]} 16... Ba6 {[%clk 0:01:31.1]} 17. g4
{[%clk 0:02:09.7]} 17... exd4 {[%clk 0:01:23.3]} 18. Nxd4 {[%clk 0:01:59.4]}
18... Qxe3+ {[%clk 0:01:16.5]} 19. Kb1 {[%clk 0:01:59.8]} 19... Bb4 {[%clk
0:01:01.5]} 20. Nxf5 {[%clk 0:01:45.8]} 20... Qxf3 {[%clk 0:00:35.9]} 21. g5
{[%clk 0:01:23.9]} 21... Nd5 {[%clk 0:00:34.3]} 22. Bxg7+ {[%clk 0:01:18.1]}
22... Kg8 {[%clk 0:00:31.3]} 23. Bxf8 {[%clk 0:00:49.5]} 23... Rxf8 {[%clk
0:00:30.6]} 24. Ne7+ {[%clk 0:00:47.9]} 24... Kg7 {[%clk 0:00:27]} 25. Nxd5
{[%clk 0:00:45.8]} 25... cxd5 {[%clk 0:00:26.7]} 26. Bxd5 {[%clk 0:00:46.6]}
26... Qf4 {[%clk 0:00:19.8]} 27. Bb3 {[%clk 0:00:20.3]} 27... Bb5 {[%clk
0:00:17.1]} 28. h4 {[%clk 0:00:15.7]} 28... Ne5 {[%clk 0:00:12.7]} 29. h5 {[%clk
0:00:10.2]} 29... Qf3 {[%clk 0:00:08.3]} 30. h6+ {[%clk 0:00:10.2]} 30... Kh8
{[%clk 0:00:07.8]} 31. Rhe1 {[%clk 0:00:09.1]} 31... Bd3 {[%clk 0:00:06.7]} 32.
Rxd3 {[%clk 0:00:08]} 32... Qxd3 {[%clk 0:00:04.8]} 33. Qxd3 {[%clk 0:00:07.7]}
33... Nxd3 {[%clk 0:00:04.6]} 34. Re6 {[%clk 0:00:06.8]} 34... Nf4 {[%clk
0:00:03.6]} 35. Rb6 {[%clk 0:00:05.1]} 35... Ng6 {[%clk 0:00:02.6]} 36. Ka2
{[%clk 0:00:05.5]} 36... Ne5 {[%clk 0:00:01.5]} 37. Bc2 {[%clk 0:00:05]} 1-0

[Event "Late-Titled-Tuesday-Blitz-January-16-2024"]
[Site "Chess.com"]
[Date "2024.01.16"]
[Round "9"]
[White "pirulillo"]
[Black "ImportedItalianMaple"]
[Result "0-1"]
[WhiteElo "2283"]
[BlackElo "2422"]
[TimeControl "180+1"]
[EndTime "15:46:31 PST"]
[Termination "ImportedItalianMaple won on time"]

1. e4 {[%clk 0:02:57.5]} 1... g6 {[%clk 0:02:59.7]} 2. d4 {[%clk 0:02:56.8]}
2... Bg7 {[%clk 0:02:59.7]} 3. Nc3 {[%clk 0:02:56.1]} 3... d5 {[%clk 0:03:00.1]}
4. exd5 {[%clk 0:02:50.7]} 4... Nf6 {[%clk 0:03:00.2]} 5. Bc4 {[%clk 0:02:47.5]}
5... Nbd7 {[%clk 0:02:56.1]} 6. Nge2 {[%clk 0:02:45.7]} 6... Nb6 {[%clk
0:02:55.5]} 7. Bb3 {[%clk 0:02:44.9]} 7... a5 {[%clk 0:02:50.7]} 8. a3 {[%clk
0:02:42.3]} 8... a4 {[%clk 0:02:46.7]} 9. Ba2 {[%clk 0:02:40.4]} 9... Nfxd5
{[%clk 0:02:40.7]} 10. Nxd5 {[%clk 0:02:38.3]} 10... Nxd5 {[%clk 0:02:41.6]} 11.
O-O {[%clk 0:02:38.2]} 11... O-O {[%clk 0:02:41.4]} 12. c3 {[%clk 0:02:27.8]}
12... b6 {[%clk 0:02:36]} 13. Nf4 {[%clk 0:02:07.3]} 13... Bb7 {[%clk
0:02:33.5]} 14. Nxd5 {[%clk 0:01:46.3]} 14... Bxd5 {[%clk 0:02:34.4]} 15. Bxd5
{[%clk 0:01:46.1]} 15... Qxd5 {[%clk 0:02:35.3]} 16. Be3 {[%clk 0:01:46]} 16...
b5 {[%clk 0:02:22.9]} 17. Qc2 {[%clk 0:01:45.6]} 17... Qc4 {[%clk 0:02:20.2]}
18. Rad1 {[%clk 0:01:43.6]} 18... Ra6 {[%clk 0:02:17.1]} 19. Rfe1 {[%clk
0:01:34.6]} 19... Re6 {[%clk 0:02:15.7]} 20. Qc1 {[%clk 0:01:24.7]} 20... c6
{[%clk 0:02:13.3]} 21. Bh6 {[%clk 0:01:22.1]} 21... Rd8 {[%clk 0:01:59.3]} 22.
Bxg7 {[%clk 0:01:18.3]} 22... Kxg7 {[%clk 0:02:00.2]} 23. Rxe6 {[%clk
0:01:18.2]} 23... Qxe6 {[%clk 0:02:01.1]} 24. Re1 {[%clk 0:01:18.4]} 24... Qd6
{[%clk 0:01:54.2]} 25. Re5 {[%clk 0:01:15.2]} 25... e6 {[%clk 0:01:52.7]} 26.
Qe3 {[%clk 0:01:13.6]} 26... c5 {[%clk 0:01:38.8]} 27. Re4 {[%clk 0:00:45.4]}
27... b4 {[%clk 0:00:32.7]} 28. h4 {[%clk 0:00:42.6]} 28... bxa3 {[%clk
0:00:27.3]} 29. bxa3 {[%clk 0:00:37]} 29... c4 {[%clk 0:00:27.7]} 30. h5 {[%clk
0:00:35.4]} 30... Qxa3 {[%clk 0:00:22.5]} 31. h6+ {[%clk 0:00:33.3]} 31... Kg8
{[%clk 0:00:21.4]} 32. Qg5 {[%clk 0:00:33.7]} 32... Qf8 {[%clk 0:00:19.6]} 33.
Re5 {[%clk 0:00:31.9]} 33... Ra8 {[%clk 0:00:19.1]} 34. d5 {[%clk 0:00:29.4]}
34... exd5 {[%clk 0:00:18.1]} 35. Rxd5 {[%clk 0:00:30.3]} 35... a3 {[%clk
0:00:18.6]} 36. Ra5 {[%clk 0:00:23.1]} 36... a2 {[%clk 0:00:17.8]} 37. Rxa8
{[%clk 0:00:15.5]} 37... Qxa8 {[%clk 0:00:17]} 38. Qf6 {[%clk 0:00:15]} 38...
a1=Q+ {[%clk 0:00:17.4]} 39. Kh2 {[%clk 0:00:15.8]} 39... Qb8+ {[%clk
0:00:16.9]} 40. g3 {[%clk 0:00:14.7]} 40... Qf8 {[%clk 0:00:16.7]} 0-1